bitfinex/quotes_ETHUSD_20220227
["timestamp","ask_amount","ask_price","bid_price","bid_amount"]
[1645944119860,4.39904356,2733.7,2733.6,0.9672775]
[1645944120063,4.95764488,2733.7,2733.6,0.9672775]
[1645944120267,4.39904356,2733.7,2733.6,0.9672775]
[1645944120461,4.95764161,2733.7,2733.5,0.9672775]
[1645944120662,4.39904356,2733.7,2733.6,0.9672775]
[1645944121122,4.39904356,2733.7,2733.2,0.9672775]
[1645944121123,4.95764003,2733.7,2733.2,0.9672775]
[1645944121322,4.39904356,2733.7,2733.2,0.9672775]
[1645944121519,0.55858963,2733.6,2733.2,0.9672775]
[1645944121718,4.39904356,2733.7,2733.2,0.9672775]
[1645944121919,0.55858578,2733.6,2733.2,0.9672775]
[1645944122823,0.55858578,2733.6,2733.3,1.26904079]
[1645944123026,0.55858578,2733.6,2733.4,0.9672775]
[1645944123224,0.55858578,2733.6,2733.5,0.9672775]
[1645944123421,0.55858578,2733.6,2733.2,0.9672775]
[1645944123821,0.55858578,2733.6,2733.3,1.4672775]
[1645944124021,0.55858578,2733.6,2733.4,0.9672775]
[1645944124423,0.55858578,2733.6,2733.5,0.9672775]
[1645944124664,0.55858578,2733.6,2733.2,0.9672775]
[1645944124864,0.55858578,2733.6,2733.3,0.9672775]
[1645944125062,0.55858578,2733.6,2733.4,0.9672775]
[1645944125265,0.55858578,2733.6,2733.5,0.9672775]
[1645944125667,0.55858578,2733.6,2733.2,0.9672775]
[1645944125869,0.55858578,2733.6,2733.3,0.9672775]
[1645944126067,0.55858578,2733.6,2733.4,0.9672775]
[1645944126268,0.55858578,2733.6,2733.5,0.9672775]
[1645944126468,0.55858578,2733.6,2733.2,0.9672775]
[1645944129914,0.55858578,2733.6,2733.2,4.4672775]
[1645944130115,0.55858578,2733.6,2733.4,1.33042869]
[1645944130316,0.55858578,2733.6,2733.5,0.9672775]
[1645944131920,0.55858578,2733.6,2733.2,4.4672775]
[1645944132161,0.55858578,2733.6,2733.3,0.9672775]
[1645944132362,0.55858578,2733.6,2733.2,0.9672775]
[1645944132562,0.55858578,2733.6,2733.3,0.9672775]
[1645944132965,0.55858578,2733.6,2733.4,0.9672775]
[1645944133267,0.55858578,2733.6,2733.5,0.9672775]
[1645944133664,0.55858578,2733.6,2733.3,0.9672775]
[1645944133863,0.55858578,2733.6,2733.4,0.9672775]
[1645944134064,0.55858578,2733.6,2733.5,0.9672775]
[1645944134263,0.55858578,2733.6,2733.1,1.6511977]
[1645944134463,0.55858578,2733.6,2733.5,0.9672775]
[1645944134664,0.55858578,2733.6,2733.2,0.9672775]
[1645944134863,0.55858578,2733.6,2733.5,0.9672775]
[1645944135064,0.55858578,2733.6,2733.1,1.6511977]
[1645944135463,0.55858578,2733.6,2733.2,0.9672775]
[1645944135664,0.55858578,2733.6,2733.3,0.9672775]
[1645944135919,0.55858578,2733.6,2733.4,0.9672775]
[1645944136121,0.55858578,2733.6,2733.5,0.9672775]
[1645944136521,0.55858578,2733.6,2733.1,1.4949335]
[1645944136721,0.55858578,2733.6,2733.2,0.9672775]
[1645944136924,0.55858578,2733.6,2733.3,0.9672775]
[1645944137122,0.55858578,2733.6,2733.4,0.9672775]
[1645944137323,0.55858578,2733.6,2733.5,0.9672775]
[1645944137524,0.55858578,2733.6,2733.1,1.4949335]
[1645944137726,0.55858578,2733.6,2733.2,0.9672775]
[1645944137923,0.55858578,2733.6,2733.3,0.9672775]
[1645944138122,0.55858578,2733.6,2733.4,0.9672775]
[1645944138324,0.55858578,2733.6,2733.5,0.9672775]
[1645944138530,4.05858578,2733.6,2733.5,0.9672775]
[1645944138725,0.85858578,2733.6,2733.1,0.9672775]
[1645944138924,0.85858578,2733.6,2733.2,0.9672775]
[1645944138925,5.436,2733.6,2733.2,0.9672775]
[1645944139124,0.92966385,2733.5,2733.3,0.9672775]
[1645944139423,0.92966385,2733.4,2732.9,0.00502069]
[1645944139663,0.56216385,2733.3,2733.0,0.95811759]
[1645944140466,0.56216385,2733.3,2733.1,0.95811759]
[1645944140665,0.56216385,2733.3,2733.2,0.95811759]
[1645944141368,0.56216385,2733.5,2733.0,0.95811759]
[1645944141572,0.56216385,2733.4,2733.1,0.95811759]
[1645944141771,1.4704,2733.6,2733.2,0.95811759]
[1645944141772,0.56216385,2733.3,2733.2,0.95811759]
[1645944141970,0.93792399,2733.5,2733.2,0.95811759]
[1645944142171,0.57042399,2733.4,2733.3,0.95811759]
[1645944142570,0.57042399,2733.4,2733.0,0.95811759]
[1645944142771,0.57042399,2733.4,2732.5,0.91541387]
[1645944142772,0.57042399,2733.4,2733.1,0.95811759]
[1645944142972,0.57042399,2733.4,2733.2,0.95811759]
[1645944143174,0.57042399,2733.4,2733.3,0.95811759]
[1645944143430,0.93792399,2733.4,2733.3,0.95811759]
[1645944143626,0.93792399,2733.4,2732.9,0.0050205]
[1645944143627,0.25883618,2733.3,2732.9,0.0050205]
[1645944143828,0.3675,2733.1,2733.0,0.95305447]
[1645944144023,0.57042399,2733.1,2733.0,0.95305447]
[1645944144225,4.07042399,2733.1,2733.0,0.95305447]
[1645944144424,0.3675,2733.2,2733.0,0.95305447]
[1645944144826,0.57542275,2733.1,2733.0,0.94473847]
[1645944145025,0.3675,2733.2,2733.1,0.72127739]
[1645944147659,3.8675,2733.2,2733.1,0.72127739]
[1645944148064,0.3675,2733.2,2733.1,0.72127739]
[1645944148265,3.8675,2733.2,2733.1,0.72127739]
[1645944149566,4.1675,2733.2,2733.1,0.72127739]
[1645944153620,0.3,2733.2,2733.1,0.72127739]
[1645944153817,0.93885613,2733.3,2733.1,0.72127739]
[1645944154672,0.6675,2733.3,2733.1,0.72127739]
[1645944158917,16.22383079,2733.4,2733.1,0.26347739]
[1645944159217,2.12338853,2733.6,2733.1,0.26347739]
[1645944159421,4.39904356,2733.7,2733.1,0.26347739]
[1645944159617,4.39904356,2733.7,2733.1,0.63097739]
[1645944159817,4.39904356,2733.7,2733.2,3.8675]
[1645944160218,4.39904356,2733.7,2733.2,4.8675]
[1645944160418,4.39904356,2733.7,2733.6,1.17026954]
[1645944161520,4.39904356,2733.7,2733.2,4.8675]
[1645944161923,4.39904356,2733.7,2733.2,4.4097]
[1645944163766,4.39904356,2733.7,2733.4,1.34763761]
[1645944164167,4.34904356,2733.7,2733.4,1.34763761]
[1645944164369,4.34904356,2733.7,2733.2,4.4097]
[1645944164575,4.34904356,2733.7,2733.2,1.3675]
[1645944164769,4.34904356,2733.7,2733.1,0.26347739]
[1645944164970,0.58185631,2733.6,2733.2,0.48492692]
[1645944168023,0.58185631,2733.6,2733.1,0.26347739]
[1645944169024,0.58185631,2733.6,2733.1,0.63097739]
[1645944169226,4.34904356,2733.7,2733.3,0.3675]
[1645944169430,4.34904356,2733.7,2733.5,0.3675]
[1645944169676,4.34904356,2733.7,2733.6,4.3985]
[1645944169880,4.34904356,2733.7,2733.6,6.73316958]
[1645944170277,0.00096,2734.6,2733.8,0.3675]
[1645944170479,0.00518068,2734.4,2733.8,3.8675]
[1645944170876,0.00518068,2734.4,2733.8,4.8675]
[1645944171277,0.00518068,2734.4,2733.4,1.531]
[1645944171479,0.1463,2734.5,2733.4,1.0]
[1645944171679,0.1463,2734.5,2733.3,1.3]
[1645944171680,0.00614156,2734.4,2733.3,1.3]
[1645944171878,0.69985616,2734.4,2733.3,3.8]
[1645944172289,1.0612146,2734.3,2733.2,1.21115475]
[1645944172489,0.14726,2734.2,2733.2,1.21115475]
[1645944172686,0.14726,2734.2,2733.1,4.01347739]
[1645944172883,1.2084746,2734.2,2733.1,0.26347739]
[1645944173083,1.4090621,2734.2,2733.2,0.02005475]
[1645944173282,1.0612146,2734.1,2733.2,0.02005475]
[1645944173541,0.1463,2734.0,2733.2,0.02005475]
[1645944173941,0.1463,2734.0,2733.1,0.26347739]
[1645944174143,0.1463,2734.1,2733.1,0.28353179]
[1645944174344,0.8400146,2734.1,2733.1,0.28353179]
[1645944174544,0.5138,2734.1,2733.1,0.28353179]
[1645944174748,1.2075146,2734.1,2733.1,0.28353179]
[1645944175150,12.6926425,2734.1,2733.1,0.26347739]
[1645944175353,1.0612146,2734.0,2733.1,0.28353179]
[1645944175551,0.1463,2733.9,2733.1,0.28353179]
[1645944175948,1.4654603,2733.9,2733.1,0.28353179]
[1645944176148,1.8329603,2733.9,2733.1,0.28353179]
[1645944176349,2.8266749,2733.9,2733.1,0.26347739]
[1645944176748,2.1329603,2733.9,2733.1,0.26347739]
[1645944176949,0.8138,2733.9,2733.1,0.26347739]
[1645944177780,0.8089278,2733.9,2733.1,0.26347739]
[1645944177977,12.0289278,2733.9,2733.1,0.26347739]
[1645944178176,12.7226424,2733.9,2733.1,0.26347739]
[1645944178379,0.2648497,2733.8,2733.1,0.26347739]
[1645944186486,0.2648497,2733.8,2733.6,0.5]
[1645944186887,0.2648497,2733.8,2733.1,0.26347739]
[1645944187288,0.2648497,2733.8,2733.2,0.02005384]
[1645944188088,12.17455681,2733.7,2733.3,0.93887641]
[1645944188292,12.17455681,2733.7,2733.1,0.26347739]
[1645944188293,12.2812146,2733.5,2733.1,0.26347739]
[1645944188534,0.3675,2733.2,2733.1,0.26347739]
[1645944188734,0.8985,2733.2,2733.1,0.26347739]
[1645944188933,3.5,2733.1,2732.4,0.08398474]
[1645944189134,4.6146,2733.1,2732.5,0.00304465]
[1645944189432,4.6146,2733.1,2732.3,0.00304465]
[1645944189636,4.6146,2733.1,2732.2,0.5]
[1645944190034,4.6146,2733.1,2732.2,0.50304465]
[1645944190637,1.07455704,2732.9,2732.2,0.50304465]
[1645944190837,3.50369672,2733.1,2732.2,0.50304465]
[1645944191835,3.5,2733.1,2732.2,0.50304465]
[1645944192037,3.50369672,2733.1,2732.2,0.0424]
[1645944193082,3.5,2733.1,2732.2,0.0424]
[1645944193282,3.50545762,2733.1,2732.5,0.00545882]
[1645944193485,4.57707319,2733.1,2732.5,0.00545882]
[1645944194281,3.5,2733.1,2732.2,0.0424]
[1645944194481,3.5055072,2733.1,2732.7,0.00550811]
[1645944195083,3.5055072,2733.1,2732.0,0.299072]
[1645944195084,3.5,2733.0,2732.0,0.299072]
[1645944195284,3.5,2733.0,2731.9,5.097]
[1645944195686,3.5,2733.0,2732.2,0.5]
[1645944195917,4.3746,2733.2,2732.2,0.5]
[1645944196129,4.0746,2733.2,2732.2,0.5]
[1645944197425,1.12607665,2733.1,2732.2,0.5]
[1645944197829,4.3746,2733.2,2732.2,0.5]
[1645944198026,4.3746,2733.2,2732.2,0.0424]
[1645944198226,0.00580926,2732.8,2732.2,0.0424]
[1645944199030,4.0746,2733.2,2732.2,0.0424]
[1645944199430,0.00580935,2732.6,2732.2,0.0424]
[1645944199680,3.7,2732.8,2732.7,0.00105002]
[1645944214977,4.06505785,2732.8,2732.7,0.00105002]
[1645944215180,4.99518642,2732.8,2732.7,0.00105002]
[1645944215981,4.62768642,2732.8,2732.7,0.00105002]
[1645944217183,4.99518642,2732.8,2732.7,0.00105002]
[1645944227032,4.62768642,2732.8,2732.7,0.00105002]
[1645944227244,4.32768642,2732.8,2732.7,0.00105002]
[1645944227436,3.69755785,2732.8,2732.7,0.00105002]
[1645944227835,4.32176597,2732.8,2732.7,2.31172254]
[1645944228140,4.32192284,2732.8,2732.7,2.31172254]
[1645944228543,4.32192284,2732.8,2732.7,0.89645707]
[1645944228738,4.32192284,2732.8,2732.7,0.00105002]
[1645944229136,3.69755785,2732.8,2732.7,0.00105002]
[1645944229334,4.32209675,2732.8,2732.7,0.00105002]
[1645944229991,4.31218265,2732.8,2732.7,0.89645707]
[1645944230389,4.31218265,2732.8,2732.7,0.00105002]
[1645944231794,4.31218265,2732.8,2732.7,0.89645707]
[1645944233523,4.31218265,2732.8,2732.7,0.00105002]
[1645944234932,4.31218265,2732.8,2732.7,0.89645707]
[1645944236027,3.68764375,2732.8,2732.7,0.89645707]
[1645944236630,3.68764375,2732.8,2732.7,1.26395707]
[1645944237271,3.68764375,2732.8,2732.7,1.94830261]
[1645944237669,3.68764375,2732.8,2732.7,1.56395707]
[1645944241333,2.0387971,2732.8,2732.7,1.56395707]
[1645944241733,0.005293,2732.9,2732.8,7.8675]
[1645944241935,0.005293,2732.9,2732.8,9.06290705]
[1645944242132,0.005293,2732.9,2732.8,10.06290705]
[1645944242334,0.1463,2734.0,2732.8,10.06290705]
[1645944242532,0.65488527,2733.9,2733.0,0.3675]
[1645944242736,0.65488527,2733.8,2733.1,0.89540705]
[1645944242934,0.65488527,2733.7,2733.5,1.3790221]
[1645944243233,1.1915,2734.1,2733.6,0.89540705]
[1645944243433,0.65553284,2734.0,2733.7,0.89540705]
[1645944243634,0.65457284,2733.9,2733.0,2.5721]
[1645944243835,0.65457284,2733.8,2733.1,0.87323726]
[1645944244034,0.65457284,2733.7,2733.1,0.87323726]
[1645944244234,0.00518353,2734.0,2733.1,0.87323726]
[1645944244235,0.65457284,2733.6,2733.1,0.87323726]
[1645944244438,0.65457284,2733.5,2733.1,0.87323726]
[1645944244689,0.00096,2734.1,2733.1,0.87323726]
[1645944244875,0.00096,2734.1,2733.5,1.05311164]
[1645944244876,8.01528833,2734.1,2733.5,1.05311164]
[1645944245078,0.65432833,2734.0,2733.6,0.87323726]
[1645944245281,0.65528833,2734.0,2733.7,0.87323726]
[1645944245479,4.35432833,2734.0,2733.0,0.6675]
[1645944245678,0.55432833,2733.9,2733.0,1.53924235]
[1645944245878,0.55432833,2733.9,2733.0,0.6675]
[1645944246081,0.55432833,2733.9,2733.0,1.35119044]
[1645944246284,0.00518372,2733.6,2733.2,0.3675]
[1645944246882,0.00518372,2733.6,2733.2,0.6675]
[1645944247084,3.70096,2734.0,2733.4,1.29891699]
[1645944247282,3.7,2734.0,2733.4,1.29891699]
[1645944247486,0.00520746,2733.5,2733.3,0.3]
[1645944247681,0.00520746,2733.5,2733.0,0.6675]
[1645944248282,3.7,2734.0,2732.9,1.05119044]
[1645944248523,3.7,2734.0,2733.1,1.30510514]
[1645944248524,0.00520754,2733.4,2733.1,1.30510514]
[1645944249526,1.20056,2733.9,2733.1,1.30510514]
[1645944249925,0.00520754,2733.4,2733.1,1.30510514]
[1645944250729,1.20056,2733.9,2733.1,1.30510514]
[1645944251132,0.00519998,2733.4,2733.1,1.30510514]
[1645944251932,1.20056,2733.9,2733.1,1.30510514]
[1645944252197,0.00519998,2733.4,2733.1,1.30510514]
[1645944253196,1.20056,2733.9,2733.1,1.30510514]
[1645944253398,1.20056,2733.9,2733.1,1.67260514]
[1645944253399,0.00519998,2733.4,2733.1,1.67260514]
[1645944253593,0.00519998,2733.4,2733.1,1.97260514]
[1645944254395,0.00096,2734.1,2733.1,1.97260514]
[1645944254597,0.00520084,2733.4,2733.1,1.97260514]
[1645944255595,0.00096,2734.1,2733.1,1.97260514]
[1645944255799,0.00520084,2733.4,2733.1,1.97260514]
[1645944256430,0.00520084,2733.4,2733.1,1.60510514]
[1645944256631,3.70520084,2733.4,2733.1,1.60510514]
[1645944256831,3.7,2733.4,2733.1,1.60510514]
[1645944257033,3.70520084,2733.4,2733.1,1.60510514]
[1645944258032,3.7,2733.4,2733.1,1.60510514]
[1645944258236,3.70520072,2733.4,2733.1,1.60510514]
[1645944259132,3.7,2733.4,2733.1,1.60510514]
[1645944259533,3.70520072,2733.4,2733.1,1.60510514]
[1645944260280,3.7,2733.4,2733.1,1.60510514]
[1645944260478,3.70372214,2733.4,2733.1,1.60510514]
[1645944261284,3.70372214,2733.4,2732.9,0.3]
[1645944261484,2.05130308,2733.4,2732.8,1.44932935]
[1645944261987,2.05650598,2733.4,2732.8,0.44932935]
[1645944262188,2.05650598,2733.4,2732.8,0.14932935]
[1645944262385,2.05650598,2733.4,2733.0,1.38495567]
[1645944262786,2.05130308,2733.4,2733.0,1.68495567]
[1645944262987,0.00520292,2733.3,2733.0,1.68495567]
[1645944264120,2.05130308,2733.4,2733.0,1.68495567]
[1645944264322,0.00520295,2733.3,2733.0,1.68495567]
[1645944264920,0.00520295,2733.3,2733.0,1.68082667]
[1645944265122,2.05130308,2733.4,2733.0,1.68082667]
[1645944265523,0.00520257,2733.3,2733.0,1.68082667]
[1645944265721,0.00520257,2733.3,2733.1,0.81797245]
[1645944266327,2.05130308,2733.4,2733.1,0.81797245]
[1645944266727,0.00520254,2733.3,2733.1,0.81797245]
[1645944267678,2.05130308,2733.4,2733.1,0.81797245]
[1645944267874,0.00520254,2733.3,2733.1,0.81797245]
[1645944268875,2.05130308,2733.4,2733.1,0.81797245]
[1645944269077,0.00520254,2733.3,2733.1,0.81797245]
[1645944270078,2.05130308,2733.4,2733.1,0.81797245]
[1645944270277,0.00520276,2733.3,2733.1,0.81797245]
[1645944271130,2.05130308,2733.4,2733.1,0.81797245]
[1645944271533,0.00520276,2733.3,2733.1,0.81797245]
[1645944272032,0.00520276,2733.3,2733.2,0.81797245]
[1645944272433,2.05130308,2733.4,2733.2,0.81797245]
[1645944272632,2.05650581,2733.4,2733.3,0.81797245]
[1645944273332,2.05650581,2733.4,2733.3,2.24596934]
[1645944273532,2.05130308,2733.4,2733.3,2.24596934]
[1645944274333,2.05130308,2733.4,2733.3,0.81797245]
[1645944280823,2.78219464,2733.4,2733.3,0.81797245]
[1645944281230,3.14969464,2733.4,2733.3,0.81797245]
[1645944281431,2.41880308,2733.4,2733.3,0.81797245]
[1645944281628,3.14971447,2733.4,2733.3,0.81797245]
[1645944281832,2.41880308,2733.4,2733.3,0.81797245]
[1645944282030,5.91880308,2733.4,2733.3,0.81797245]
[1645944282290,7.98530007,2733.4,2733.3,0.81797245]
[1645944282687,8.13160007,2733.4,2732.7,0.00407937]
[1645944282889,0.3675,2733.2,2732.7,0.80401502]
[1645944283087,7.03296207,2733.4,2732.8,0.79993565]
[1645944283088,0.3675,2733.0,2732.8,0.79993565]
[1645944283293,3.38666207,2733.4,2732.7,0.00407937]
[1645944283294,0.3675,2732.9,2732.7,0.00407937]
[1645944283495,5.0878,2733.3,2733.2,1.2815451]
[1645944283695,4.60517889,2733.3,2733.2,2.08127288]
[1645944285695,1.10517889,2733.3,2733.2,2.08127288]
[1645944287427,4.60517889,2733.3,2733.2,2.08127288]
[1645944287626,1.10517889,2733.3,2733.2,2.08127288]
[1645944290978,1.10517889,2733.3,2733.2,2.07357458]
[1645944291176,1.10517889,2733.3,2733.2,1.2815451]
[1645944291177,1.40517889,2733.3,2733.2,1.2815451]
[1645944291379,1.10517889,2733.3,2733.2,2.07357721]
[1645944294828,1.10517889,2733.3,2733.2,1.2815451]
[1645944297574,6.3675,2733.2,2732.4,0.00302935]
[1645944297772,0.73767889,2733.1,2732.4,0.00302935]
[1645944297974,1.03767889,2733.1,2732.3,0.76817307]
[1645944298271,4.60517889,2733.0,2732.3,0.76817307]
[1645944298472,1.11434173,2732.8,2732.3,0.76817307]
[1645944298670,3.5,2732.7,2732.3,0.76817307]
[1645944299072,3.50520299,2732.7,2732.3,0.76817307]
[1645944300076,3.5,2732.7,2732.3,0.31047307]
[1645944300273,3.50520292,2732.7,2732.2,0.0408]
[1645944300673,0.00520292,2732.7,2732.2,0.0408]
[1645944301131,1.2308,2732.8,2732.2,0.0408]
[1645944301531,0.00520285,2732.7,2732.2,0.0408]
[1645944302033,3.50520285,2732.7,2732.2,0.0408]
[1645944302234,0.00520285,2732.7,2732.2,0.0408]
[1645944302531,1.5983,2732.8,2732.2,0.0408]
[1645944302736,0.00520285,2732.7,2732.2,0.0408]
[1645944303131,0.00520285,2732.7,2732.0,0.68369044]
[1645944303132,0.00520285,2732.7,2732.0,0.27173508]
[1645944303333,3.70520285,2732.7,2732.0,0.27173508]
[1645944303631,2.4780964,2732.7,2732.0,0.27173508]
[1645944303832,2.4780964,2732.7,2732.2,0.5]
[1645944306085,2.4780964,2732.7,2732.2,0.0423]
[1645944306286,5.9780964,2732.7,2731.8,0.00302935]
[1645944306887,2.4780964,2732.7,2731.8,0.00302935]
[1645944307485,2.4780964,2732.7,2732.1,0.00581431]
[1645944308089,5.9780964,2732.7,2732.1,0.00581431]
[1645944308526,5.9780964,2732.7,2731.8,0.00302935]
[1645944308726,5.9780964,2732.7,2732.2,0.00581429]
[1645944309128,0.47629834,2732.4,2731.6,3.82280596]
[1645944309327,0.47629834,2732.4,2731.7,0.00305352]
[1645944309328,0.95259668,2732.4,2731.7,0.00305352]
[1645944312295,0.95259668,2732.4,2731.5,1.4962]
[1645944312296,5.0,2732.1,2731.9,0.00581118]
[1645944312495,15.62656524,2732.0,2731.9,0.00581118]
[1645944312690,0.21142535,2731.8,2731.3,8.33251]
[1645944312886,12.35088137,2731.7,2731.3,8.33251]
[1645944313091,12.6326614,2731.7,2731.3,8.33251]
[1645944313786,1.4126614,2731.7,2731.3,8.33251]
[1645944314188,12.6326614,2731.7,2731.3,8.33251]
[1645944314389,0.47629834,2731.5,2731.3,8.33251]
[1645944314585,0.47629834,2731.4,2731.3,8.33251]
[1645944319880,0.95259668,2731.4,2731.3,8.33251]
[1645944320281,0.95259668,2731.4,2731.3,8.94452322]
[1645944321286,0.95259668,2731.4,2731.3,8.94447579]
[1645944321487,0.95259668,2731.4,2731.3,8.33251]
[1645944321887,0.95259668,2731.4,2731.3,8.94459039]
[1645944322187,0.95259668,2731.4,2731.3,8.33251]
[1645944323453,0.17738703,2731.4,2731.3,8.33251]
[1645944324150,0.17738703,2731.4,2731.3,8.330589]
[1645944324847,0.00370767,2731.6,2731.3,8.330589]
[1645944325049,0.17738703,2731.4,2731.3,8.330589]
[1645944325447,0.17738703,2731.4,2731.3,8.33615232]
[1645944326453,0.17738703,2731.4,2731.3,8.330589]
[1645944326855,3.87738703,2731.4,2731.3,8.330589]
[1645944334701,3.87738703,2731.4,2731.3,8.91770622]
[1645944334893,3.87738703,2731.4,2731.3,10.28520622]
[1645944335290,3.87738703,2731.4,2731.3,9.91770622]
[1645944335490,3.87738703,2731.4,2731.3,11.06809166]
[1645944336098,3.87738703,2731.4,2731.3,10.48097444]
[1645944336297,3.87738703,2731.4,2731.3,11.05672961]
[1645944337094,3.87738703,2731.4,2731.3,10.05672961]
[1645944337996,3.87738703,2731.4,2731.3,10.00672961]
[1645944339441,2.22666787,2731.4,2731.3,11.37422961]
[1645944339646,3.93323252,2732.6,2731.3,11.37422961]
[1645944339647,0.1464,2732.6,2731.5,0.3675]
[1645944339844,0.94942747,2732.5,2731.7,0.3675]
[1645944340044,0.1464,2732.9,2731.8,0.94325517]
[1645944340245,0.94945492,2732.8,2731.9,0.57575517]
[1645944340443,0.94945492,2732.7,2731.9,0.57879422]
[1645944340642,0.94945492,2732.9,2731.9,0.57879422]
[1645944340845,0.94945492,2732.8,2731.9,0.57879422]
[1645944341050,0.00581199,2732.4,2732.3,1.0968432]
[1645944341251,0.00581199,2732.4,2731.9,0.57879422]
[1645944341252,0.00581199,2732.4,2731.9,0.00303905]
[1645944341450,0.00581199,2732.4,2731.8,0.57634403]
[1645944341650,0.00581199,2732.4,2731.8,0.57938308]
[1645944342189,3.75023782,2732.9,2731.8,0.57938308]
[1645944342382,0.00581212,2732.2,2732.0,1.13450528]
[1645944342982,0.00581212,2732.2,2732.1,0.57653685]
[1645944343182,1.162,2733.0,2732.1,0.57653685]
[1645944343383,0.00581212,2732.2,2732.1,0.57653685]
[1645944343583,0.00138429,2732.2,2732.1,0.57653685]
[1645944344386,0.95060174,2732.8,2732.1,0.57653685]
[1645944344985,0.95060174,2732.8,2731.8,0.00303905]
[1645944345282,0.95060174,2732.8,2731.8,0.57979984]
[1645944345925,0.00409322,2732.4,2731.8,0.57979984]
[1645944346734,15.0875,2732.7,2731.8,0.57979984]
[1645944346735,1.31810174,2732.6,2731.8,0.57979984]
[1645944346935,0.95060174,2732.5,2731.8,0.57979984]
[1645944347131,0.00409307,2732.3,2731.8,0.57979984]
[1645944347332,0.00409307,2732.3,2731.9,0.57676079]
[1645944347531,0.00409307,2732.3,2732.0,0.57676079]
[1645944347732,0.00409307,2732.3,2731.6,4.5737157]
[1645944347934,0.95060174,2732.4,2731.7,0.58018796]
[1645944348134,0.95060174,2732.3,2731.7,0.57714891]
[1645944348333,0.95641372,2732.3,2731.7,0.58018796]
[1645944348534,0.00581198,2732.3,2731.7,0.58018796]
[1645944348732,3.70581198,2732.3,2731.7,0.58018796]
[1645944349131,3.7,2732.3,2731.7,0.58018796]
[1645944349537,3.70581176,2732.3,2731.7,0.58018796]
[1645944350198,0.00581176,2732.3,2731.7,0.58018796]
[1645944350399,4.3653,2732.7,2731.7,0.00303905]
[1645944350600,0.00581176,2732.3,2731.8,0.00303905]
[1645944350798,0.95159045,2732.2,2731.7,0.57756235]
[1645944351899,0.00581168,2732.3,2731.7,0.57756235]
[1645944352103,0.9518933,2732.2,2731.7,0.5806014]
[1645944352298,0.9518933,2732.2,2731.7,0.57756235]
[1645944352702,0.9518933,2732.2,2731.8,0.57756235]
[1645944352901,0.9518933,2732.2,2731.9,0.57756235]
[1645944353103,0.00581168,2732.3,2732.0,0.57756235]
[1645944353299,0.95244622,2732.2,2732.1,0.57756235]
[1645944353539,0.95244622,2732.2,2731.6,0.57756235]
[1645944353739,0.95244622,2732.2,2731.7,0.57756235]
[1645944353940,0.95244622,2732.2,2731.8,0.57756235]
[1645944354143,0.95244622,2732.2,2731.9,0.57756235]
[1645944354343,0.00581168,2732.3,2732.0,0.57756235]
[1645944354543,0.95268751,2732.2,2732.0,0.57756235]
[1645944354847,0.95268751,2732.2,2732.1,0.57756235]
[1645944355245,0.95268751,2732.2,2731.4,2.21804998]
[1645944355246,0.95268751,2732.2,2731.6,0.57756235]
[1645944355446,0.95268751,2732.1,2731.7,0.57756235]
[1645944355646,0.95268751,2732.2,2731.8,0.57756235]
[1645944355846,0.00581198,2732.3,2731.9,0.57756235]
[1645944355847,0.9528664,2732.1,2731.9,0.57756235]
[1645944356047,0.00581198,2732.3,2732.0,0.57756235]
[1645944356248,0.9530054,2732.2,2732.1,0.57756235]
[1645944356447,0.9530054,2732.2,2731.6,0.57756235]
[1645944356646,0.9530054,2732.2,2731.4,4.53806228]
[1645944356647,0.9530054,2732.1,2731.7,0.57756235]
[1645944356847,0.72671612,2732.6,2731.5,0.00172329]
[1645944356848,0.9530054,2732.5,2731.5,0.57928564]
[1645944357048,0.95300698,2732.4,2731.6,0.5806014]
[1645944357291,0.95300698,2732.3,2731.7,0.5806014]
[1645944357496,0.95300698,2732.2,2731.8,0.57756235]
[1645944357697,0.95300698,2732.1,2731.9,0.57756235]
[1645944357892,0.00581236,2732.3,2732.0,0.57756235]
[1645944358099,0.00581236,2732.3,2732.1,0.57756235]
[1645944358298,0.00581236,2732.3,2732.2,0.57756235]
[1645944358898,1.1774,2732.7,2731.8,0.5806014]
[1645944359100,0.00581262,2732.4,2731.9,0.57756235]
[1645944359300,0.00581262,2732.4,2731.9,0.3]
[1645944359499,0.00581262,2732.4,2732.0,0.57756235]
[1645944359704,0.00581262,2732.4,2732.0,1.78934956]
[1645944359898,0.00581262,2732.4,2732.1,0.57756235]
[1645944360105,1.1774,2732.7,2732.2,0.57756235]
[1645944360297,1.9499,2732.8,2731.6,2.35144998]
[1645944360298,0.00581266,2732.3,2731.6,2.35144998]
[1645944360499,0.00581266,2732.3,2731.8,0.30303905]
[1645944360700,0.00581266,2732.3,2731.9,0.87817879]
[1645944360931,0.00581266,2732.3,2732.0,0.57817879]
[1645944361337,0.5,2732.4,2732.0,0.57817879]
[1645944361537,0.00581258,2732.3,2732.1,1.24761252]
[1645944361838,0.00581258,2732.3,2732.2,0.57817879]
[1645944362437,0.5,2732.4,2732.2,0.57817879]
[1645944362839,0.50581262,2732.4,2732.2,0.57817879]
[1645944363640,0.11473826,2732.4,2732.2,0.57817879]
[1645944363840,0.12055085,2732.4,2732.2,0.57817879]
[1645944364243,0.12055085,2732.4,2732.2,0.87817879]
[1645944364444,0.12055085,2732.4,2732.3,0.57817879]
[1645944364696,0.12055085,2732.4,2732.3,4.07817879]
[1645944364885,0.11473826,2732.4,2732.3,4.07817879]
[1645944365289,0.11473826,2732.4,2732.3,5.07817879]
[1645944365485,0.11473826,2732.4,2732.3,5.22447879]
[1645944367894,0.11473826,2732.4,2732.3,5.07817879]
[1645944369530,0.11473826,2732.4,2732.3,1.57817879]
[1645944369731,0.11473826,2732.4,2732.3,0.57817879]
[1645944371135,0.11473826,2732.4,2732.3,4.07817879]
[1645944371336,0.11473826,2732.4,2732.3,5.07817879]
[1645944372187,0.11473826,2732.4,2732.3,1.57817879]
[1645944372588,0.11473826,2732.4,2732.3,0.57817879]
[1645944372787,0.00581256,2732.5,2732.3,0.57817879]
[1645944372986,0.00581256,2732.5,2732.4,0.57817879]
[1645944373191,0.1463,2733.3,2732.4,0.87817879]
[1645944373388,0.95869128,2733.2,2732.5,0.57817879]
[1645944373586,0.95869128,2733.2,2732.6,0.57817879]
[1645944373787,0.95869128,2733.2,2732.4,0.3]
[1645944373987,0.95869128,2733.2,2732.5,0.57037019]
[1645944374188,0.95869128,2733.2,2732.6,0.57037019]
[1645944374788,0.00581225,2733.0,2732.6,0.57037019]
[1645944374988,0.95869128,2732.9,2732.6,1.64311088]
[1645944375190,0.00581225,2733.0,2732.7,0.57037019]
[1645944375589,0.1463,2733.3,2732.4,0.3]
[1645944375794,0.1463,2733.3,2732.3,4.8]
[1645944375795,0.95875599,2733.2,2732.5,0.57047211]
[1645944376037,0.00581225,2733.0,2732.5,0.3]
[1645944376237,0.95875599,2732.9,2732.6,0.57047211]